{"text_format":"1","workbook":"xlsx","n_sheets":2,"sheets":["r21","Base21"],"not_rendered":{"charts":0,"images":6,"macros":1,"external_links":0,"defined_names":5,"comments":0,"pivot_tables":0},"unopened":[],"bounds":{"document_bytes":16777216,"sheet_cells":100000,"rows_first":2000,"rows_last":500,"rows_between":2000,"halvings":0,"cell_chars":16384,"cell_head_chars":4096},"cells_cut":0,"cells_raw":0,"read":"whole","date_system":"1900"}

{"sheet":"r21","index":0,"n_rows":1476,"n_cols":6,"rows_kept":1476,"cut":false,"hidden":false,"merged":[[0,4,0,5],[0,0,0,3]]}
["R21 - Resultatregnskap og endringer i EK for\nbanker og kreditt- og finansieringsforatak",null,null,null,"RA-0783\nmars 2018"]
[]
["Datasentralnummer (3 siffer)"]
["Organisasjonsnr. (9 siffer)"]
["Rapport nr. (21, 2 siffer)",21]
["Periode (år og måned; ååååmm, 6 siffer)  "]
[]
[]
["Veiledning for malen - se vår hjemmeside"]
[]
["POSTER I KVARTALRESULTATREGNSKAPET","KODE","PORTEFØLJE","SEKTOR","VALUTA","VERDI"]
["","KODE",0,"",""]
[null,{"$f":"IF(ISBLANK(A13),\"\",VLOOKUP(A13,Base_itens,2,FALSE))","v":""}]
[null,""]
[null,""]
[null,""]
[null,""]
[null,""]
[null,""]
[null,{"$f":"IF(ISBLANK(A20),\"\",VLOOKUP(A20,Base_itens,2,FALSE))","v":""}]
[null,""]
[null,""]
[null,""]
[null,""]
[null,""]
[null,""]
[null,""]
[null,""]
[null,""]
[null,""]
[null,""]
[null,""]
[null,""]
[null,""]
[null,""]
[null,""]
[null,""]
[null,""]
[null,""]
[null,""]
[null,""]
[null,""]
[null,""]
[null,""]
[null,""]
[null,""]
[null,""]
[null,""]
[null,""]
[null,""]
[null,""]
[null,""]
[null,""]
[null,""]
[null,""]
[null,""]
[null,""]
[null,""]
[null,""]
[null,""]
[null,""]
[null,""]
[null,""]
[null,""]
[null,""]
[null,""]
[null,""]
[null,""]
[null,""]
[null,""]
[null,""]
[null,""]
[null,""]
[null,""]
[null,""]
[null,""]
[null,{"$f":"IF(ISBLANK(A77),\"\",VLOOKUP(A77,Base_itens,2,FALSE))","v":""}]
[null,""]
[null,""]
[null,""]
[null,""]
[null,""]
[null,""]
[null,""]
[null,""]
[null,""]
[null,""]
[null,""]
[null,""]
[null,""]
[null,""]
[null,""]
[null,""]
[null,""]
[null,""]
[null,""]
[null,""]
[null,""]
[null,""]
[null,""]
[null,""]
[null,""]
[null,""]
[null,""]
[null,""]
[null,""]
[null,""]
[null,""]
[null,""]
[null,""]
[null,""]
[null,""]
[null,""]
[null,""]
[null,""]
[null,""]
[null,""]
[null,""]
[null,""]
[null,""]
[null,""]
[null,""]
[null,""]
[null,""]
[null,""]
[null,""]
[null,""]
[null,""]
[null,""]
[null,""]
[null,""]
[null,""]
[null,""]
[null,""]
[null,""]
[null,""]
[null,""]
[null,""]
[null,""]
[null,""]
[null,{"$f":"IF(ISBLANK(A141),\"\",VLOOKUP(A141,Base_itens,2,FALSE))","v":""}]
[null,""]
[null,""]
[null,""]
[null,""]
[null,""]
[null,""]
[null,""]
[null,""]
[null,""]
[null,""]
[null,""]
[null,""]
[null,""]
[null,""]
[null,""]
[null,""]
[null,""]
[null,""]
[null,""]
[null,""]
[null,""]
[null,""]
[null,""]
[null,""]
[null,""]
[null,""]
[null,""]
[null,""]
[null,""]
[null,""]
[null,""]
[null,""]
[null,""]
[null,""]
[null,""]
[null,""]
[null,""]
[null,""]
[null,""]
[null,""]
[null,""]
[null,""]
[null,""]
[null,""]
[null,""]
[null,""]
[null,""]
[null,""]
[null,""]
[null,""]
[null,""]
[null,""]
[null,""]
[null,""]
[null,""]
[null,""]
[null,""]
[null,""]
[null,""]
[null,""]
[null,""]
[null,""]
[null,""]
[null,{"$f":"IF(ISBLANK(A205),\"\",VLOOKUP(A205,Base_itens,2,FALSE))","v":""}]
[null,""]
[null,""]
[null,""]
[null,""]
[null,""]
[null,""]
[null,""]
[null,""]
[null,""]
[null,""]
[null,""]
[null,""]
[null,""]
[null,""]
[null,""]
[null,""]
[null,""]
[null,""]
[null,""]
[null,""]
[null,""]
[null,""]
[null,""]
[null,""]
[null,""]
[null,""]
[null,""]
[null,""]
[null,""]
[null,""]
[null,""]
[null,""]
[null,""]
[null,""]
[null,""]
[null,""]
[null,""]
[null,""]
[null,""]
[null,""]
[null,""]
[null,""]
[null,""]
[null,""]
[null,""]
[null,""]
[null,""]
[null,""]
[null,""]
[null,""]
[null,""]
[null,""]
[null,""]
[null,""]
[null,""]
[null,""]
[null,""]
[null,""]
[null,""]
[null,""]
[null,""]
[null,""]
[null,""]
[null,{"$f":"IF(ISBLANK(A269),\"\",VLOOKUP(A269,Base_itens,2,FALSE))","v":""}]
[null,""]
[null,""]
[null,""]
[null,""]
[null,""]
[null,""]
[null,""]
[null,""]
[null,""]
[null,""]
[null,""]
[null,""]
[null,""]
[null,""]
[null,""]
[null,""]
[null,""]
[null,""]
[null,""]
[null,""]
[null,""]
[null,""]
[null,""]
[null,""]
[null,""]
[null,""]
[null,""]
[null,""]
[null,""]
[null,""]
[null,""]
[null,""]
[null,""]
[null,""]
[null,""]
[null,""]
[null,""]
[null,""]
[null,""]
[null,""]
[null,""]
[null,""]
[null,""]
[null,""]
[null,""]
[null,""]
[null,""]
[null,""]
[null,""]
[null,""]
[null,""]
[null,""]
[null,""]
[null,""]
[null,""]
[null,""]
[null,""]
[null,""]
[null,""]
[null,""]
[null,""]
[null,""]
[null,""]
[null,{"$f":"IF(ISBLANK(A333),\"\",VLOOKUP(A333,Base_itens,2,FALSE))","v":""}]
[null,""]
[null,""]
[null,""]
[null,""]
[null,""]
[null,""]
[null,""]
[null,""]
[null,""]
[null,""]
[null,""]
[null,""]
[null,""]
[null,""]
[null,""]
[null,""]
[null,""]
[null,""]
[null,""]
[null,""]
[null,""]
[null,""]
[null,""]
[null,""]
[null,""]
[null,""]
[null,""]
[null,""]
[null,""]
[null,""]
[null,""]
[null,""]
[null,""]
[null,""]
[null,""]
[null,""]
[null,""]
[null,""]
[null,""]
[null,""]
[null,""]
[null,""]
[null,""]
[null,""]
[null,""]
[null,""]
[null,""]
[null,""]
[null,""]
[null,""]
[null,""]
[null,""]
[null,""]
[null,""]
[null,""]
[null,""]
[null,""]
[null,""]
[null,""]
[null,""]
[null,""]
[null,""]
[null,""]
[null,{"$f":"IF(ISBLANK(A397),\"\",VLOOKUP(A397,Base_itens,2,FALSE))","v":""}]
[null,""]
[null,""]
[null,""]
[null,""]
[null,""]
[null,""]
[null,""]
[null,""]
[null,""]
[null,""]
[null,""]
[null,""]
[null,""]
[null,""]
[null,""]
[null,""]
[null,""]
[null,""]
[null,""]
[null,""]
[null,""]
[null,""]
[null,""]
[null,""]
[null,""]
[null,""]
[null,""]
[null,""]
[null,""]
[null,""]
[null,""]
[null,""]
[null,""]
[null,""]
[null,""]
[null,""]
[null,""]
[null,""]
[null,""]
[null,""]
[null,""]
[null,""]
[null,""]
[null,""]
[null,""]
[null,""]
[null,""]
[null,""]
[null,""]
[null,""]
[null,""]
[null,""]
[null,""]
[null,""]
[null,""]
[null,""]
[null,""]
[null,""]
[null,""]
[null,""]
[null,""]
[null,""]
[null,""]
[null,{"$f":"IF(ISBLANK(A461),\"\",VLOOKUP(A461,Base_itens,2,FALSE))","v":""}]
[null,""]
[null,""]
[null,""]
[null,""]
[null,""]
[null,""]
[null,""]
[null,""]
[null,""]
[null,""]
[null,""]
[null,""]
[null,""]
[null,""]
[null,""]
[null,""]
[null,""]
[null,""]
[null,""]
[null,""]
[null,""]
[null,""]
[null,""]
[null,""]
[null,""]
[null,""]
[null,""]
[null,""]
[null,""]
[null,""]
[null,""]
[null,""]
[null,""]
[null,""]
[null,""]
[null,""]
[null,""]
[null,""]
[null,""]
[null,""]
[null,""]
[null,""]
[null,""]
[null,""]
[null,""]
[null,""]
[null,""]
[null,""]
[null,""]
[null,""]
[null,""]
[null,""]
[null,""]
[null,""]
[null,""]
[null,""]
[null,""]
[null,""]
[null,""]
[null,""]
[null,""]
[null,""]
[null,""]
[null,{"$f":"IF(ISBLANK(A525),\"\",VLOOKUP(A525,Base_itens,2,FALSE))","v":""}]
[null,""]
[null,""]
[null,""]
[null,""]
[null,""]
[null,""]
[null,""]
[null,""]
[null,""]
[null,""]
[null,""]
[null,""]
[null,""]
[null,""]
[null,""]
[null,""]
[null,""]
[null,""]
[null,""]
[null,""]
[null,""]
[null,""]
[null,""]
[null,""]
[null,""]
[null,""]
[null,""]
[null,""]
[null,""]
[null,""]
[null,""]
[null,""]
[null,""]
[null,""]
[null,""]
[null,""]
[null,""]
[null,""]
[null,""]
[null,""]
[null,""]
[null,""]
[null,""]
[null,""]
[null,""]
[null,""]
[null,""]
[null,""]
[null,""]
[null,""]
[null,""]
[null,""]
[null,""]
[null,""]
[null,""]
[null,""]
[null,""]
[null,""]
[null,""]
[null,""]
[null,""]
[null,""]
[null,""]
[null,{"$f":"IF(ISBLANK(A589),\"\",VLOOKUP(A589,Base_itens,2,FALSE))","v":""}]
[null,""]
[null,""]
[null,""]
[null,""]
[null,""]
[null,""]
[null,""]
[null,""]
[null,""]
[null,""]
[null,""]
[null,""]
[null,""]
[null,""]
[null,""]
[null,""]
[null,""]
[null,""]
[null,""]
[null,""]
[null,""]
[null,""]
[null,""]
[null,""]
[null,""]
[null,""]
[null,""]
[null,""]
[null,""]
[null,""]
[null,""]
[null,""]
[null,""]
[null,""]
[null,""]
[null,""]
[null,""]
[null,""]
[null,""]
[null,""]
[null,""]
[null,""]
[null,""]
[null,""]
[null,""]
[null,""]
[null,""]
[null,""]
[null,""]
[null,""]
[null,""]
[null,""]
[null,""]
[null,""]
[null,""]
[null,""]
[null,""]
[null,""]
[null,""]
[null,""]
[null,""]
[null,""]
[null,""]
[null,{"$f":"IF(ISBLANK(A653),\"\",VLOOKUP(A653,Base_itens,2,FALSE))","v":""}]
[null,""]
[null,""]
[null,""]
[null,""]
[null,""]
[null,""]
[null,""]
[null,""]
[null,""]
[null,""]
[null,""]
[null,""]
[null,""]
[null,""]
[null,""]
[null,""]
[null,""]
[null,""]
[null,""]
[null,""]
[null,""]
[null,""]
[null,""]
[null,""]
[null,""]
[null,""]
[null,""]
[null,""]
[null,""]
[null,""]
[null,""]
[null,""]
[null,""]
[null,""]
[null,""]
[null,""]
[null,""]
[null,""]
[null,""]
[null,""]
[null,""]
[null,""]
[null,""]
[null,""]
[null,""]
[null,""]
[null,""]
[null,""]
[null,""]
[null,""]
[null,""]
[null,""]
[null,""]
[null,""]
[null,""]
[null,""]
[null,""]
[null,""]
[null,""]
[null,""]
[null,""]
[null,""]
[null,""]
[null,{"$f":"IF(ISBLANK(A717),\"\",VLOOKUP(A717,Base_itens,2,FALSE))","v":""}]
[null,""]
[null,""]
[null,""]
[null,""]
[null,""]
[null,""]
[null,""]
[null,""]
[null,""]
[null,""]
[null,""]
[null,""]
[null,""]
[null,""]
[null,""]
[null,""]
[null,""]
[null,""]
[null,""]
[null,""]
[null,""]
[null,""]
[null,""]
[null,""]
[null,""]
[null,""]
[null,""]
[null,""]
[null,""]
[null,""]
[null,""]
[null,""]
[null,""]
[null,""]
[null,""]
[null,""]
[null,""]
[null,""]
[null,""]
[null,""]
[null,""]
[null,""]
[null,""]
[null,""]
[null,""]
[null,""]
[null,""]
[null,""]
[null,""]
[null,""]
[null,""]
[null,""]
[null,""]
[null,""]
[null,""]
[null,""]
[null,""]
[null,""]
[null,""]
[null,""]
[null,""]
[null,""]
[null,""]
[null,{"$f":"IF(ISBLANK(A781),\"\",VLOOKUP(A781,Base_itens,2,FALSE))","v":""}]
[null,""]
[null,""]
[null,""]
[null,""]
[null,""]
[null,""]
[null,""]
[null,""]
[null,""]
[null,""]
[null,""]
[null,""]
[null,""]
[null,""]
[null,""]
[null,""]
[null,""]
[null,""]
[null,""]
[null,""]
[null,""]
[null,""]
[null,""]
[null,""]
[null,""]
[null,""]
[null,""]
[null,""]
[null,""]
[null,""]
[null,""]
[null,""]
[null,""]
[null,""]
[null,""]
[null,""]
[null,""]
[null,""]
[null,""]
[null,""]
[null,""]
[null,""]
[null,""]
[null,""]
[null,""]
[null,""]
[null,""]
[null,""]
[null,""]
[null,""]
[null,""]
[null,""]
[null,""]
[null,""]
[null,""]
[null,""]
[null,""]
[null,""]
[null,""]
[null,""]
[null,""]
[null,""]
[null,""]
[null,{"$f":"IF(ISBLANK(A845),\"\",VLOOKUP(A845,Base_itens,2,FALSE))","v":""}]
[null,""]
[null,""]
[null,""]
[null,""]
[null,""]
[null,""]
[null,""]
[null,""]
[null,""]
[null,""]
[null,""]
[null,""]
[null,""]
[null,""]
[null,""]
[null,""]
[null,""]
[null,""]
[null,""]
[null,""]
[null,""]
[null,""]
[null,""]
[null,""]
[null,""]
[null,""]
[null,""]
[null,""]
[null,""]
[null,""]
[null,""]
[null,""]
[null,""]
[null,""]
[null,""]
[null,""]
[null,""]
[null,""]
[null,""]
[null,""]
[null,""]
[null,""]
[null,""]
[null,""]
[null,""]
[null,""]
[null,""]
[null,""]
[null,""]
[null,""]
[null,""]
[null,""]
[null,""]
[null,""]
[null,""]
[null,""]
[null,""]
[null,""]
[null,""]
[null,""]
[null,""]
[null,""]
[null,""]
[null,{"$f":"IF(ISBLANK(A909),\"\",VLOOKUP(A909,Base_itens,2,FALSE))","v":""}]
[null,""]
[null,""]
[null,""]
[null,""]
[null,""]
[null,""]
[null,""]
[null,""]
[null,""]
[null,""]
[null,""]
[null,""]
[null,""]
[null,""]
[null,""]
[null,""]
[null,""]
[null,""]
[null,""]
[null,""]
[null,""]
[null,""]
[null,""]
[null,""]
[null,""]
[null,""]
[null,""]
[null,""]
[null,""]
[null,""]
[null,""]
[null,""]
[null,""]
[null,""]
[null,""]
[null,""]
[null,""]
[null,""]
[null,""]
[null,""]
[null,""]
[null,""]
[null,""]
[null,""]
[null,""]
[null,""]
[null,""]
[null,""]
[null,""]
[null,""]
[null,""]
[null,""]
[null,""]
[null,""]
[null,""]
[null,""]
[null,""]
[null,""]
[null,""]
[null,""]
[null,""]
[null,""]
[null,""]
[null,{"$f":"IF(ISBLANK(A973),\"\",VLOOKUP(A973,Base_itens,2,FALSE))","v":""}]
[null,""]
[null,""]
[null,""]
[null,""]
[null,""]
[null,""]
[null,""]
[null,""]
[null,""]
[null,""]
[null,""]
[null,""]
[null,""]
[null,""]
[null,""]
[null,""]
[null,""]
[null,""]
[null,""]
[null,""]
[null,""]
[null,""]
[null,""]
[null,""]
[null,""]
[null,""]
[null,""]
[null,""]
[null,""]
[null,""]
[null,""]
[null,""]
[null,""]
[null,""]
[null,""]
[null,""]
[null,""]
[null,""]
[null,""]
[null,""]
[null,""]
[null,""]
[null,""]
[null,""]
[null,""]
[null,""]
[null,""]
[null,""]
[null,""]
[null,""]
[null,""]
[null,""]
[null,""]
[null,""]
[null,""]
[null,""]
[null,""]
[null,""]
[null,""]
[null,""]
[null,""]
[null,""]
[null,""]
[null,{"$f":"IF(ISBLANK(A1037),\"\",VLOOKUP(A1037,Base_itens,2,FALSE))","v":""}]
[null,""]
[null,""]
[null,""]
[null,""]
[null,""]
[null,""]
[null,""]
[null,""]
[null,""]
[null,""]
[null,""]
[null,""]
[null,""]
[null,""]
[null,""]
[null,""]
[null,""]
[null,""]
[null,""]
[null,""]
[null,""]
[null,""]
[null,""]
[null,""]
[null,""]
[null,""]
[null,""]
[null,""]
[null,""]
[null,""]
[null,""]
[null,""]
[null,""]
[null,""]
[null,""]
[null,""]
[null,""]
[null,""]
[null,""]
[null,""]
[null,""]
[null,""]
[null,""]
[null,""]
[null,""]
[null,""]
[null,""]
[null,""]
[null,""]
[null,""]
[null,""]
[null,""]
[null,""]
[null,""]
[null,""]
[null,""]
[null,""]
[null,""]
[null,""]
[null,""]
[null,""]
[null,""]
[null,""]
[null,{"$f":"IF(ISBLANK(A1101),\"\",VLOOKUP(A1101,Base_itens,2,FALSE))","v":""}]
[null,""]
[null,""]
[null,""]
[null,""]
[null,""]
[null,""]
[null,""]
[null,""]
[null,""]
[null,""]
[null,""]
[null,""]
[null,""]
[null,""]
[null,""]
[null,""]
[null,""]
[null,""]
[null,""]
[null,""]
[null,""]
[null,""]
[null,""]
[null,""]
[null,""]
[null,""]
[null,""]
[null,""]
[null,""]
[null,""]
[null,""]
[null,""]
[null,""]
[null,""]
[null,""]
[null,""]
[null,""]
[null,""]
[null,""]
[null,""]
[null,""]
[null,""]
[null,""]
[null,""]
[null,""]
[null,""]
[null,""]
[null,""]
[null,""]
[null,""]
[null,""]
[null,""]
[null,""]
[null,""]
[null,""]
[null,""]
[null,""]
[null,""]
[null,""]
[null,""]
[null,""]
[null,""]
[null,""]
[null,{"$f":"IF(ISBLANK(A1165),\"\",VLOOKUP(A1165,Base_itens,2,FALSE))","v":""}]
[null,""]
[null,""]
[null,""]
[null,""]
[null,""]
[null,""]
[null,""]
[null,""]
[null,""]
[null,""]
[null,""]
[null,""]
[null,""]
[null,""]
[null,""]
[null,""]
[null,""]
[null,""]
[null,""]
[null,""]
[null,""]
[null,""]
[null,""]
[null,""]
[null,""]
[null,""]
[null,""]
[null,""]
[null,""]
[null,""]
[null,""]
[null,""]
[null,""]
[null,""]
[null,""]
[null,""]
[null,""]
[null,""]
[null,""]
[null,""]
[null,""]
[null,""]
[null,""]
[null,""]
[null,""]
[null,""]
[null,""]
[null,""]
[null,""]
[null,""]
[null,""]
[null,""]
[null,""]
[null,""]
[null,""]
[null,""]
[null,""]
[null,""]
[null,""]
[null,""]
[null,""]
[null,""]
[null,""]
[null,{"$f":"IF(ISBLANK(A1229),\"\",VLOOKUP(A1229,Base_itens,2,FALSE))","v":""}]
[null,""]
[null,""]
[null,""]
[null,""]
[null,""]
[null,""]
[null,""]
[null,""]
[null,""]
[null,""]
[null,""]
[null,""]
[null,""]
[null,""]
[null,""]
[null,""]
[null,""]
[null,""]
[null,""]
[null,""]
[null,""]
[null,""]
[null,""]
[null,""]
[null,""]
[null,""]
[null,""]
[null,""]
[null,""]
[null,""]
[null,""]
[null,""]
[null,""]
[null,""]
[null,""]
[null,""]
[null,""]
[null,""]
[null,""]
[null,""]
[null,""]
[null,""]
[null,""]
[null,""]
[null,""]
[null,""]
[null,""]
[null,""]
[null,""]
[null,""]
[null,""]
[null,""]
[null,""]
[null,""]
[null,""]
[null,""]
[null,""]
[null,""]
[null,""]
[null,""]
[null,""]
[null,""]
[null,""]
[null,{"$f":"IF(ISBLANK(A1293),\"\",VLOOKUP(A1293,Base_itens,2,FALSE))","v":""}]
[null,""]
[null,""]
[null,""]
[null,""]
[null,""]
[null,""]
[null,""]
[null,""]
[null,""]
[null,""]
[null,""]
[null,""]
[null,""]
[null,""]
[null,""]
[null,""]
[null,""]
[null,""]
[null,""]
[null,""]
[null,""]
[null,""]
[null,""]
[null,""]
[null,""]
[null,""]
[null,""]
[null,""]
[null,""]
[null,""]
[null,""]
[null,""]
[null,""]
[null,""]
[null,""]
[null,""]
[null,""]
[null,""]
[null,""]
[null,""]
[null,""]
[null,""]
[null,""]
[null,""]
[null,""]
[null,""]
[null,""]
[null,""]
[null,""]
[null,""]
[null,""]
[null,""]
[null,""]
[null,""]
[null,""]
[null,""]
[null,""]
[null,""]
[null,""]
[null,""]
[null,""]
[null,""]
[null,""]
[null,{"$f":"IF(ISBLANK(A1357),\"\",VLOOKUP(A1357,Base_itens,2,FALSE))","v":""}]
[null,""]
[null,""]
[null,""]
[null,""]
[null,""]
[null,""]
[null,""]
[null,""]
[null,""]
[null,""]
[null,""]
[null,""]
[null,""]
[null,""]
[null,""]
[null,""]
[null,""]
[null,""]
[null,""]
[null,""]
[null,""]
[null,""]
[null,""]
[null,""]
[null,""]
[null,""]
[null,""]
[null,""]
[null,""]
[null,""]
[null,""]
[null,""]
[null,""]
[null,""]
[null,""]
[null,""]
[null,""]
[null,""]
[null,""]
[null,""]
[null,""]
[null,""]
[null,""]
[null,""]
[null,""]
[null,""]
[null,""]
[null,""]
[null,""]
[null,""]
[null,""]
[null,""]
[null,""]
[null,""]
[null,""]
[null,""]
[null,""]
[null,""]
[null,""]
[null,""]
[null,""]
[null,""]
[null,""]
[null,{"$f":"IF(ISBLANK(A1421),\"\",VLOOKUP(A1421,Base_itens,2,FALSE))","v":""}]
[null,""]
[null,""]
[null,""]
[null,""]
[null,""]
[null,""]
[null,""]
[null,""]
[null,""]
[null,""]
[null,""]
[null,""]
[null,""]
[null,""]
[null,""]
[null,""]
[null,""]
[null,""]
[null,""]
[null,""]
[null,""]
[null,""]
[null,""]
[null,""]
[null,""]
[null,""]
[null,""]
[null,""]
[null,""]
[null,""]
[null,""]
[null,""]
[null,""]
[null,""]
[null,""]
[null,""]
[null,""]
[null,""]
[null,""]
[null,""]
[null,""]
[null,""]
[null,""]
[null,""]
[null,""]
[null,""]
[null,""]
[null,""]
[null,""]
[null,""]
[null,""]
[null,""]
[null,""]
[null,""]
[null,""]

{"sheet":"Base21","index":1,"n_rows":103,"n_cols":5,"rows_kept":103,"cut":false,"hidden":false,"merged":[]}
["2018-08-30"]
[]
["Post","Base-itens","Portefølje","SEKTOR","VALUTA"]
["11111600 Renteinntekter, Bankinnskudd",{"$f":"MID(A4,1,8)","v":"11111600"},"000 Ingen","00000 Usektorisert","10 Norske kroner (NOK)"]
["11123000 Renteinntekter, Rentebærende omsettelige verdipapirer",{"$f":"MID(A5,1,8)","v":"11123000"},"010 Internasjonale reserver","01000 Norske sektorer i alt","30 Sum utenlandsk valuta "]
["11104000 Renteinntekter, Finansielle derivater","11104000","090 Norges Bank, ekskl. internasjonsle resverver og SPU","01008    \"    - tilknyttede selskaper","90 Ingen valutafordeling"]
["11135000 Renteinntekter, Utlån","11135000",null,"01009    \"    - konsernselskaper"]
["11109000 Renteinntekter, Øvrige eiendeler","11109000",null,"01010    \"    - ekskl. tilkn. og konsernselskaper"]
["11200000 Kredittprovisjonsinntekter","11200000",null,"03300 Norges Bank, norske kredittinstitusjoner og finansieringsforetak"]
["12001010 Provisjons- og gebyrinntekter, Betalingsformidling, kort","12001010",null,"08800 Norske sektorer utenom Norges Bank, kredittinstitusjoner og finansieringsforetak"]
["12001020 Provisjons- og gebyrinntekter, Betalingsformidling, giro","12001020",null,"09300 Utenlandske sentralbanker og kredittinstitusjoner"]
["12001090 Provisjons- og gebyrinntekter, Betalingsformidling, øvrig","12001090",null,"09900 Utenlandske sektorer utenom sentralbanker og kredittinstitusjoner"]
["12002000 Provisjons- og gebyrinntekter, Netto garantiprovisjonsinntekter","12002000",null,"90000 Utenlandske sektorer i alt"]
["12009000 Provisjons- og gebyrinntekter,  Andre provisjoner og gebyrer","12009000",null,"90008     \"    - tilknyttede selskaper"]
["13022051 Utbytte, konsernbidrag og annen resultatavhengig avkastning, Rentefond","13022051",null,"90009     \"    - konsernselskaper"]
["13022091 Utbytte, konsernbidrag og annen resultatavhengig avkastning, Aksjer og andeler regnskapsført etter egenkapitalmetoden","13022091",null,"90010     \"    - andre enn konsern ogtilknyttede selskaper"]
["13022099 Utbytte, konsernbidrag og annen resultatavhengig avkastning, Øvrig","13022099"]
["16004000 Netto verdiendringer og gevinst - tap på valuta og finansielle instrumenter, Valuta og finansielle derivater (eiend. og gjeld)","16004000"]
["16022000 Netto verdiendringer og gevinst - tap på valuta og finansielle instrumenter, Aksjer, andeler og egenkapitalbevis","16022000"]
["16023000 Netto verdiendringer og gevinst - tap på valuta og finansielle instrumenter, Rentebærende, omsettelige verdipapirer","16023000"]
["16035000 Netto verdiendringer og gevinst - tap på valuta og finansielle instrumenter, Utlån","16035000"]
["16009600 Netto verdiendringer og gevinst - tap på valuta og finansielle instrumenter, Øvrige finansielle eiendeler","16009600"]
["16009700 Netto verdiendringer og gevinst - tap på valuta og finansielle instrumenter, Finansielle forpliktelser, ekskl. derivater","16009700"]
["16048120 Netto verdiendringer og gevinst - tap på valuta og finansielle instrumenter, Fordringer på IMF, spesielle trekkrettigheter (gjelder kun Norges Bank)","16048120"]
["16048140 Netto verdiendringer og gevinst - tap på valuta og finansielle instrumenter, Fordringer på IMF, lån til IMF(gjelder kun Norges Bank)","16048140"]
["16048170 Netto verdiendringer og gevinst - tap på valuta og finansielle instrumenter, Fordringer på IMF, Norges kvote i IMF(gjelder kun Norges Bank)","16048170"]
["16078110 Netto verdiendringer og gevinst - tap på valuta og finansielle instrumenter, Gjeld til IMF, IMFs beholdning av NOK (gjelder kun Norges Bank)","16078110"]
["16078120 Netto verdiendringer og gevinst - tap på valuta og finansielle instrumenter, Gjeld til IMF, Motverdi av SDR (gjelder kun Norges Bank)","16078120"]
["27300000 Driftsinntekter eide eiendommer","27300000"]
["27808000 Andre inntekter fra tjenester (inkl. honorarer), Forvaltningshonorarer fra konsernselskaper ","27808000"]
["27901000 Andre driftsinntekter, Negativ goodwill innregnet i resultat","27901000"]
["27909000 Andre driftsinntekter, Øvrige","27909000"]
["27908000 Andre driftsinntekter, Rentestøtte fra staten (gjelder kun statlige låneinst.)","27908000"]
["41161000 Rentekostnader, Innskudd","41161000"]
["41103010 Rentekostnader, Lån i form av rentebærende, omsettelige verdipapirer, OMF","41103010"]
["41103090 Rentekostnader, Lån i form av rentebærende, Annen verdipapirgjeld","41103090"]
["41104000 Rentekostnader, Finansielle derivater","41104000"]
["41105000 Rentekostnader, Andre lån","41105000"]
["41109000 Rentekostnader, Andre forpliktelser","41109000"]
["41300000 Avgift til sikringsfondet","41300000"]
["42001000 Provisjons- og gebyrkostnader, kurtasje, Betalingsformidling","42001000"]
["42002000 Provisjons- og gebyrkostnader, kurtasje, Netto garantiprovisjonskostnader","42002000"]
["42009000 Provisjons- og gebyrkostnader, kurtasje, Andre provisjoner og gebyrer","42009000"]
["55101100 Lønn og naturalytelser til ansatte, unntatt personalforsikringer","55101100"]
["55101900 Styrehonorarer, godtgj.for verv og andre avgiftspliktige honorarer","55101900"]
["55102000 Andre honorarer klassifisert som lønn","55102000"]
["55103000 Pensjonskostnader","55103000"]
["55104000 Personalforsikringer","55104000"]
["55105000 Arbeidsgiveravgift og finansskatt","55105000"]
["55109000 Andre personalkostnader","55109000"]
["57101000 Kostnader til strøm og forsikring, Strøm inkl. nettleie","57101000"]
["57102000 Kostnader til strøm og forsikring, Forsikring","57102000"]
["57301000 Driftskostnader eide eiendommer, Reparasjon og vedlikehold","57301000"]
["57309000 Driftskostnader eide eiendommer, Andre, ekskl. strøm og forsikring","57309000"]
["57801000 Andre kostnader til eksterne tjenester (inkl. honorarer), Revisjon og regnskap","57801000"]
["57802000 Andre kostnader til eksterne tjenester (inkl. honorarer), Juridisk bistand","57802000"]
["57803000 Andre kostnader til eksterne tjenester (inkl. honorarer), IKT","57803000"]
["57804000 Andre kostnader til eksterne tjenester (inkl. honorarer), Salg, reklame og representasjon","57804000"]
["57807100 Andre kostnader til eksterne tjenester (inkl. honorarer), Leie av lokaler","57807100"]
["57807300 Andre kostnader til eksterne tjenester (inkl. honorarer), Leie av maskiner, inventar og transportmidler","57807300"]
["57808000 Andre kostnader til eksterne tjenester (inkl. honorarer), Forvaltningshonorarer til konsernselskaper","57808000"]
["57809010 Andre kostnader til eksterne tjenester (inkl. honorarer), Øvrige, honorarer til bemanningsselskaper","57809010"]
["57809090 Andre kostnader til eksterne tjenester (inkl. honorarer), Andre","57809090"]
["57901000 Andre driftskostnader, Lisenser, programmer og annet IKT-utstyr","57901000"]
["57909000 Andre driftskostnader, Øvrige","57909000"]
["57908000 Andre driftskostnader, Overføringer til staten (gjelder kun statlige låneinst.)","57908000"]
["66101000 Av- og nedskrivning, verdiendringer og gevinst - tap på ikke-finansielle eiendeler, Avskrivninger (kan være negativ)","66101000"]
["66102000 Av- og nedskrivning, verdiendringer og gevinst - tap på ikke-finansielle eiendeler, Nedskrivninger (kan være negativ)","66102000"]
["66104000 Av- og nedskrivning, verdiendringer og gevinst - tap på ikke-finansielle eiendeler, Netto verdiendringer (negativ for netto positive verdiendr.)",{"$f":"MID(A69,1,8)","v":"66104000"}]
["66106000 Av- og nedskrivning, verdiendringer og gevinst - tap på ikke-finansielle eiendeler, Gevinst - tap (negativ for gevinst)","66106000"]
["66623000 Kredittap på utlån og rentebærende verdipapirer, Rentebærende, omsettelige verdipapirer (kan være negativ)","66623000"]
["66635011 Kredittap på utlån og rentebærende verdipapirer, Utlån som er balanseført, Konstaterte tap utlån t. virkelig verdi (kan være negativ)","66635011"]
["66635019 Kredittap på utlån og rentebærende verdipapirer, Utlån som er balanseført, Øvrige kredittap utlån t. virkelig verdi (kan være negativ)","66635019"]
["66635021 Kredittap på utlån og rentebærende verdipapirer, Utlån som er balanseført, Konstaterte tap utlån t. amortisert kost (kan være negativ)","66635021"]
["66635029 Kredittap på utlån og rentebærende verdipapirer, Utlån som er balanseført, Øvrige kredittap utlån t. amortisert kost (kan være negativ)","66635029"]
["66878600 Kredittap på ubenyttet utlånsramme og garantier, Ubenyttet utlånsramme (kan være negativ)","66878600"]
["66878700 Kredittap på ubenyttet utlånsramme og garantier, Garantier (kan være negativ)","66878700"]
["78001000 Skattekostnader, Periodeskatt","78001000"]
["78078900 Skattekostnader, Endring i forpliktelse ved utsatt skatt","78078900"]
["89101000 Andre inntekter og kostnader som ikke blir omklassifisert til resultatet, Fra egenkapitalinstrumenter klassifisert til virkelig verdi over OCI","89101000"]
["89103000 Andre inntekter og kostnader som ikke blir omklassifisert til resultatet, Estimatendringer knyttet til ytelsesbaserte pensjonsordninger","89103000"]
["89106000 Andre inntekter og kostnader som ikke blir omklassifisert til resultatet, Fra andre finansielle eiendeler og forpliktelser","89106000"]
["89107000 Andre inntekter og kostnader som ikke blir omklassifisert til resultatet, Fra ikke-finansielle eiendeler","89107000"]
["89178900 Andre inntekter og kostnader som ikke blir omklassifisert til resultatet, Skatt på inntekt - kostn. som ikke blir omklassifisert","89178900"]
["89202000 Andre inntekter og kostnader som kan bli omklassifisert til resultatet, Fra investeringer i rentebærende verdipapirer klassif. til virkelig verdi over OCI","89202000"]
["89204000 Andre inntekter og kostnader som kan bli omklassifisert til resultatet, Effektiv andel av nettogevinster på sikringsinstrumenter i kontantstrømsikring","89204000"]
["89205000 Andre inntekter og kostnader som kan bli omklassifisert til resultatet, Netto valutakursgevinster ved omregning av utenlandsk virksomhet","89205000"]
["89206000 Andre inntekter og kostnader som kan bli omklassifisert til resultatet, Fra andre finansielle eiendeler og forpliktelser","89206000"]
["89207000 Andre inntekter og kostnader som kan bli omklassifisert til resultatet, Fra ikke-finansielle eiendeler","89207000"]
["89278900 Andre inntekter og kostnader som kan bli omklassifisert til resultatet, Skatt på inntekt - kostn. som kan bli omklassifisert","89278900"]
["90100000 Virkninger av endringer i regnskapsprinsipper og korreksjoner av feil i IB (kan være negativ)","90100000"]
["90301000 Totalresultat hittil i år, Resultat hittil i år (negativt hvis underskudd)","90301000"]
["90309000 Totalresultat hittil i år, Netto inntekter over utvidet resultat hittil i år (OCI)  (negativt hvis netto kostnad) Kun IFRS-rapportører i 2018","90309000"]
["90592100 Emisjoner (+), tilbakekjøp, innfrielser og kapitalnedsettelser (-), Aksje - eierandelskapital (kan være negativ)","90592100"]
["90592500 Emisjoner (+), tilbakekjøp, innfrielser og kapitalnedsettelser (-), Fondsobligasjonskapital (kan være negativ)","90592500"]
["90801000 Andre egenkapitaltransaksjoner (utdelinger og fordelinger til eiere), Gaveutdeling (negativ)","90801000"]
["90804000 Andre egenkapitaltransaksjoner (utdelinger og fordelinger til eiere), Renter på fondsobligasjonskapital (negativ)","90804000"]
["90805000 Andre egenkapitaltransaksjoner (utdelinger og fordelinger til eiere), Utbytte - renter på eierandelskapital (negativ)","90805000"]
["90806010 Andre egenkapitaltransaksjoner (utdelinger og fordelinger til eiere), Konsernbidrag, avgitt (negativ)","90806010"]
["90806020 Andre egenkapitaltransaksjoner (utdelinger og fordelinger til eiere), Konsernbidrag, mottatt ","90806020"]
["90807000 Andre egenkapitaltransaksjoner (utdelinger og fordelinger til eiere), Kundeutbytte ","90807000"]
["90809000 Andre egenkapitaltransaksjoner (utdelinger og fordelinger til eiere), Andre egenkapitaltransaksjoner (negativ hvis reduksjon av egenkapital)",{"$f":"MID(A102,1,8)","v":"90809000"}]
["90808000 Andre egenkapitaltransaksjoner (utdelinger og fordelinger til eiere), Overføring til statskassen (kun Norges Bank) (negativ)","90808000"]